bitfinex-derivatives/quotes_BNBF0:USTF0_20250305
["timestamp","ask_amount","ask_price","bid_price","bid_amount"]
[1741168216800,0.33203838,602.34,601.55,0.27480765]
[1741168217603,0.28906055,602.33,601.55,0.27480765]
[1741168217804,0.3320494,602.32,601.55,0.27480765]
[1741168218297,0.3320494,602.32,601.41,0.27480765]
[1741168218505,0.3320494,602.32,601.42,0.27480765]
[1741168218903,0.3320494,602.32,601.43,0.27480765]
[1741168219104,0.3320494,602.32,601.41,0.27480765]
[1741168220005,0.3320494,602.32,601.42,0.27480765]
[1741168220207,0.3320494,602.32,601.24,0.27480765]
[1741168220403,0.28914822,602.31,601.26,0.28914822]
[1741168220603,0.33206043,602.3,601.27,0.27480765]
[1741168221905,0.33206043,602.3,601.33,1.22818455]
[1741168222105,0.33206043,602.3,601.34,0.27480765]
[1741168222303,0.33206043,602.3,601.33,1.22818455]
[1741168222507,0.33206043,602.3,601.34,0.27481429]
[1741168222908,0.94804705,602.29,601.34,0.27481429]
[1741168223108,0.33207146,602.28,601.34,0.27481429]
[1741168223503,4.30315119,602.27,601.34,0.27481429]
[1741168223703,1.98690462,602.26,601.34,0.27481429]
[1741168223904,2.60285123,602.25,601.34,0.27481429]
[1741168224104,2.60285123,602.24,601.35,0.27484048]
[1741168224309,2.60285123,602.23,601.34,0.27484048]
[1741168224510,2.93495577,602.22,601.35,0.27484048]
[1741168224710,2.93496129,602.21,601.34,0.27484048]
[1741168224907,1.28014466,602.2,601.35,0.27484048]
[1741168225114,0.33212109,602.19,601.25,0.27484048]
[1741168225307,0.33212109,602.19,601.26,0.27484048]
[1741168225508,0.33212109,602.19,601.27,0.27484048]
[1741168225708,0.33212109,602.19,601.24,0.28914822]
[1741168225912,0.33212109,602.19,601.25,0.27462382]
[1741168226116,0.33212109,602.19,601.26,0.27462382]
[1741168226312,0.33212109,602.19,601.38,1.22818455]
[1741168226512,0.33212109,602.19,601.39,0.27462382]
[1741168227117,0.33212109,602.19,601.4,0.27462382]
[1741168227317,0.33212109,602.19,601.41,0.27462382]
[1741168227519,0.33212109,602.19,601.42,0.27462382]
[1741168227819,0.33212109,602.19,601.43,0.27462382]
[1741168228018,0.33212109,602.19,601.44,0.27462382]
[1741168228219,0.33212109,602.19,601.45,0.27462382]
[1741168228420,0.33212109,602.19,601.46,0.27462382]
[1741168228620,0.33212109,602.19,601.47,0.27462382]
[1741168228819,0.33212109,602.19,601.48,0.27462382]
[1741168229021,0.33212109,602.19,601.49,0.27462382]
[1741168229333,0.33212109,602.19,601.5,0.27462382]
[1741168229521,0.33212109,602.19,601.42,0.27462382]
[1741168229723,0.33212109,602.19,601.43,0.27462382]
[1741168230222,0.33212109,602.19,601.44,0.27462382]
[1741168230517,0.33212109,602.19,601.52,1.22818455]
[1741168230722,0.33212109,602.19,601.53,0.27462382]
[1741168232926,0.33212109,602.19,601.68,1.22818455]
[1741168233126,0.33212109,602.19,601.69,0.27462382]
[1741168234222,0.33212109,602.19,601.7,1.22818455]
[1741168234421,0.33212109,602.19,601.71,0.27462382]
[1741168236326,0.33212109,602.19,601.72,0.27462382]
[1741168236527,0.33212109,602.19,601.7,0.27462382]
[1741168236722,0.33212109,602.19,601.71,0.27462382]
[1741168236925,0.33212109,602.19,601.7,0.27462382]
[1741168237225,0.33212109,602.19,601.71,0.27462382]
[1741168237425,0.33212109,602.19,601.7,0.27462382]
[1741168237626,0.33212109,602.19,601.71,0.27462382]
[1741168237827,0.33212109,602.19,601.72,0.27462382]
[1741168238220,0.33212109,602.19,601.73,0.27462382]
[1741168238423,0.33212109,602.19,601.5,0.27462382]
[1741168238618,0.33212109,602.19,601.51,0.27462382]
[1741168238820,0.33212109,602.19,601.5,0.27462382]
[1741168239021,0.33212109,602.19,601.51,0.27462382]
[1741168239223,0.33212109,602.19,601.5,0.27462382]
[1741168239427,1.1972809,602.18,601.51,0.27462382]
[1741168239727,1.1972809,602.18,601.52,0.27462382]
[1741168239927,1.1972809,602.17,601.5,0.27462382]
[1741168240522,1.1972809,602.16,601.51,0.27462382]
[1741168240723,2.61499173,602.15,601.52,0.27462382]
[1741168240925,2.61499173,602.14,601.35,0.27462382]
[1741168241126,0.9543955,602.13,601.36,0.27462382]
[1741168241322,0.95480778,602.12,601.35,0.27462382]
[1741168241522,2.61546843,602.11,601.36,0.27462382]
[1741168241727,1.1972809,602.12,601.34,0.27462382]
[1741168241927,0.95481879,602.11,601.35,0.27462382]
[1741168242122,1.1972809,602.12,601.34,0.27462382]
[1741168242327,2.61542651,602.11,601.36,1.22818455]
[1741168242525,0.95477884,602.1,601.37,0.27462382]
[1741168242729,1.1972809,602.11,601.37,0.27462382]
[1741168242928,1.1972809,602.09,601.37,0.27462382]
[1741168243329,1.1972809,602.09,601.36,1.22818455]
[1741168243630,1.1972809,602.09,601.37,0.27477456]
[1741168243829,1.1972809,602.08,601.29,0.27477456]
[1741168244030,0.28915663,602.14,601.3,0.27477456]
[1741168244232,2.61581493,602.13,601.29,0.27477456]
[1741168244431,2.61581493,602.12,601.3,0.27477456]
[1741168244732,2.61581493,602.11,601.29,0.27477456]
[1741168245026,2.61581493,602.1,601.3,0.27477456]
[1741168245231,2.61583263,602.09,601.29,0.27477456]
[1741168245431,1.19961608,602.09,601.3,0.27477456]
[1741168245625,1.19961608,602.09,601.29,0.27477456]
[1741168245825,2.1550621,602.08,601.29,0.27477456]
[1741168246028,0.95544602,602.07,601.29,0.27477456]
[1741168246224,1.19961608,602.08,601.29,0.27477456]
[1741168246426,1.19961608,602.07,601.29,0.27477456]
[1741168247231,0.33212109,602.19,601.3,0.27463828]
[1741168247426,2.61632011,602.18,601.28,0.28917345]
[1741168247625,0.28917345,602.11,601.29,0.27463828]
[1741168247826,0.33212109,602.19,601.29,0.27463828]
[1741168248025,2.61631985,602.18,601.29,0.27463828]
[1741168248224,0.95577113,602.17,601.29,0.27463828]
[1741168248525,0.95577781,602.16,601.29,0.27463828]
[1741168248732,2.61653017,602.15,601.29,0.27463828]
[1741168249031,2.61653017,602.14,601.3,0.27463828]
[1741168249231,0.95589795,602.13,601.26,0.27463828]
[1741168249433,1.4890496,602.15,601.26,0.27463828]
[1741168249635,1.19985693,602.12,601.26,0.27463828]
[1741168249828,2.61670497,602.11,601.14,0.27463828]
[1741168250031,1.19985693,602.12,601.15,0.27463828]
[1741168250032,2.61670497,602.1,601.15,0.27463828]
[1741168250234,2.61670497,602.09,601.14,0.27463828]
[1741168250432,2.94888673,602.08,601.15,0.27463828]
[1741168250633,2.94889225,602.07,601.16,0.27463828]
[1741168250933,3.5918427,603.65,601.09,1.22818455]
[1741168250934,4.14893675,602.06,601.17,0.27463828]
[1741168251134,2.94908534,602.05,601.1,0.27463828]
[1741168251334,2.94909086,602.04,601.1,0.27463828]
[1741168251633,2.94909637,602.03,601.11,0.28924195]
[1741168251827,2.61688702,602.02,601.12,0.27463828]
[1741168252030,2.61688702,602.01,601.12,0.27463828]
[1741168252231,1.19985693,602.02,601.12,0.27463828]
[1741168252431,2.61702364,602.01,601.27,1.22818455]
[1741168252629,0.95586938,602.0,601.28,0.27463828]
[1741168252832,0.95589627,601.99,601.28,0.27463828]
[1741168253029,1.19985693,602.01,601.28,0.27463828]
[1741168253229,2.1557532,602.0,601.28,0.27463828]
[1741168253432,0.95589627,601.99,601.28,0.27463828]
[1741168253630,0.95589627,601.98,601.28,0.27463828]
[1741168253935,2.61705077,601.97,601.28,0.27463828]
[1741168254130,0.28922512,602.0,601.29,0.27488153]
[1741168254334,2.61674364,601.99,601.19,0.27488153]
[1741168254529,2.61682688,601.98,601.2,0.27488153]
[1741168254730,2.61682688,601.97,601.19,0.27488153]
[1741168254930,6.80414855,601.96,601.2,0.27488153]
[1741168255131,2.61682688,601.95,601.19,0.27488153]
[1741168255330,0.33224798,601.96,601.18,1.22818455]
[1741168255331,4.14568655,601.94,601.2,0.27488153]
[1741168255536,10.25593354,601.93,601.19,0.27488153]
[1741168255736,7.13624238,601.92,601.2,0.27488153]
[1741168255936,3.11969668,601.93,601.19,0.27488153]
[1741168255937,7.1362479,601.91,601.19,0.27488153]
[1741168256131,7.13645445,601.9,601.2,0.27488153]
[1741168256338,7.13662794,601.89,601.19,0.27488153]
[1741168256539,7.135791,601.88,601.2,0.27488153]
[1741168256837,4.47713489,601.87,601.21,0.27488153]
[1741168257033,4.4771559,601.86,600.92,0.27488153]
[1741168257229,2.94878241,601.85,600.93,0.27488153]
[1741168257430,2.94878793,601.84,600.92,0.27488153]
[1741168257630,4.47649012,601.83,600.94,0.27488153]
[1741168257831,4.47649564,601.82,600.95,0.27488153]
[1741168258038,2.94838343,601.81,600.92,0.27488153]
[1741168258236,1.19999445,601.85,600.92,0.27488153]
[1741168258237,2.94838895,601.8,600.92,0.27488153]
[1741168258436,2.94839447,601.79,600.92,0.27488153]
[1741168258636,2.94839447,601.79,600.89,0.28934295]
[1741168258637,2.94839999,601.78,600.93,0.27488153]
[1741168258836,2.61605263,601.77,600.94,0.27488153]
[1741168259030,1.53234181,601.78,600.89,0.28934295]
[1741168259031,2.61605263,601.76,600.9,0.27488153]
[1741168259234,1.53234181,601.78,600.89,0.28934295]
[1741168259235,2.61605263,601.75,600.91,0.27488153]
[1741168259435,1.53234181,601.78,600.9,0.27488153]
[1741168259635,1.19999445,601.75,600.9,0.27488153]
[1741168260436,1.19999445,601.74,600.89,0.28934295]
[1741168260633,1.19999445,601.74,600.9,0.2754533]
[1741168261438,0.33234736,601.78,600.9,0.2754533]
[1741168262034,0.33234736,601.78,600.91,0.27549628]
[1741168262234,1.19600084,601.77,600.9,0.27549628]
[1741168262437,1.19600084,601.77,600.91,0.27549628]
[1741168262636,1.19600084,601.77,600.9,0.27549628]
[1741168262833,2.14813158,601.76,600.91,0.27549628]
[1741168263036,1.19600084,601.76,600.9,0.27549628]
[1741168263238,1.19600084,601.75,600.91,0.27549628]
[1741168263432,1.19600084,601.75,600.9,0.27549628]
[1741168264036,0.33234736,601.78,600.9,0.27549628]
[1741168264236,0.95167554,601.77,600.9,0.27549628]
[1741168264536,0.33234736,601.78,600.9,0.27549628]
[1741168264737,1.19439872,601.76,600.9,0.27549628]
[1741168265038,1.52675713,601.76,600.9,0.27549628]
[1741168265239,0.33235841,601.76,600.9,0.27549628]
[1741168265533,0.2894019,601.75,600.91,0.27549628]
[1741168265838,0.2894019,601.75,600.92,0.27549628]
[1741168266039,0.2894019,601.75,600.86,0.27549628]
[1741168266235,0.2894019,601.75,600.87,0.27549628]
[1741168266432,0.2894019,601.75,600.88,0.27549628]
[1741168266639,0.2894019,601.75,600.86,0.27549628]
[1741168266839,0.2894019,601.75,600.87,0.27549628]
[1741168267139,0.2894019,601.75,600.88,0.27549628]
[1741168267341,0.2894019,601.75,600.89,0.27549628]
[1741168267539,0.2894019,601.75,600.86,0.27549628]
[1741168267743,0.2894019,601.75,600.87,0.27549628]
[1741168268243,0.33235841,601.76,600.88,0.2753988]
[1741168268537,0.33235841,601.76,600.89,0.2753988]
[1741168268739,0.28938024,601.75,600.9,0.27538446]
[1741168268934,0.28938024,601.75,600.86,0.27538446]
[1741168269134,0.33236946,601.74,600.87,0.27538446]
[1741168269440,0.33236946,601.74,600.88,0.27538446]
[1741168269640,0.33236946,601.74,600.75,0.28943079]
[1741168269843,0.33236946,601.74,600.76,0.27538446]
[1741168270037,0.33236946,601.74,600.77,0.27538446]
[1741168270339,0.33236946,601.74,600.78,0.27538446]
[1741168270539,0.33236946,601.74,600.79,0.27538446]
[1741168270737,0.33236946,601.74,600.8,0.27538446]
[1741168270937,0.33236946,601.74,600.81,0.27538446]
[1741168271138,0.33236946,601.74,600.76,0.27538446]
[1741168271437,0.2894368,601.73,600.76,0.27538446]
[1741168271635,0.3323805,601.72,600.76,0.27538446]
[1741168274541,0.28945245,601.71,600.75,0.28945245]
[1741168274840,0.62183848,601.71,600.76,0.27538446]
[1741168277341,0.33238603,601.71,600.76,0.27538446]
[1741168277542,0.28945847,601.7,600.75,0.28945847]
[1741168277737,0.28945847,601.7,600.76,0.27538446]
[1741168280343,0.33238603,601.71,600.76,0.27538446]
[1741168280545,0.28944282,601.69,600.77,0.27538446]
[1741168280744,0.28944282,601.69,600.76,0.27538446]
[1741168280941,0.28944282,601.69,600.75,0.28944282]
[1741168281143,0.28944282,601.69,600.76,0.275508]
[1741168283244,0.33238603,601.71,600.76,0.275508]
[1741168283447,0.33238603,601.71,600.75,0.28944282]
[1741168283642,0.28944282,601.68,600.76,0.275508]
[1741168286348,0.33238603,601.71,600.77,0.27549258]
[1741168286547,0.28938987,601.69,600.78,0.27549258]
[1741168286743,0.28938987,601.69,600.79,0.27549258]
[1741168286946,0.28938987,601.69,600.8,0.27549258]
[1741168287247,0.28938987,601.69,600.81,0.27549258]
[1741168287443,0.28938987,601.69,600.76,0.27549258]
[1741168288247,0.28938987,601.69,600.75,0.28938987]
[1741168288443,2.60490823,601.68,600.76,0.27571625]
[1741168288648,2.60490703,601.67,600.76,0.27571625]
[1741168288848,2.60490703,601.66,600.69,0.27571625]
[1741168289043,2.60490703,601.65,600.69,0.27571625]
[1741168289246,2.60490703,601.64,600.69,0.27571625]
[1741168289442,2.60490703,601.63,600.69,0.27571625]
[1741168289649,2.60490703,601.62,600.69,0.27571625]
[1741168289845,2.60490703,601.61,600.69,0.27571625]
[1741168290048,2.60490703,601.6,600.69,0.27571625]
[1741168290249,2.60490703,601.59,600.69,0.27571625]
[1741168290546,3.7961588,601.58,600.73,1.22818455]
[1741168290750,0.94873869,601.57,600.74,0.27571625]
[1741168290944,0.94873869,601.56,600.74,0.27571625]
[1741168291146,3.1744009,601.67,600.74,0.27571625]
[1741168291346,4.12323177,601.66,600.74,0.27571625]
[1741168291544,4.12323177,601.65,600.74,0.27571625]
[1741168291747,0.28938987,601.69,600.74,0.27571625]
[1741168291748,2.60510424,601.64,600.74,0.27571625]
[1741168291945,2.60510424,601.63,600.74,0.27571625]
[1741168292247,2.60515384,601.62,600.74,0.27571625]
[1741168292450,2.14026089,601.61,600.52,0.27571625]
[1741168292644,1.28132727,601.6,600.58,0.28946569]
[1741168292847,0.94888047,601.59,600.59,0.27571625]
[1741168293047,0.33245786,601.58,600.59,0.27571625]
[1741168293345,0.33245786,601.58,600.58,0.28946569]
[1741168293545,0.33245786,601.58,600.59,0.27593019]
[1741168293850,0.94901026,601.57,600.59,0.27593019]
[1741168294053,0.33245786,601.58,600.59,0.27593019]
[1741168294249,2.6055774,601.57,600.59,0.27593019]
[1741168294449,2.93804631,601.56,600.56,1.22818455]
[1741168294651,2.6055774,601.55,600.57,0.27593019]
[1741168294856,2.93805736,601.54,600.57,0.27593019]
[1741168295050,2.93806289,601.53,600.57,0.27593019]
[1741168295249,2.6055774,601.52,600.57,0.27593019]
[1741168295451,0.94900954,601.51,600.57,0.27593019]
[1741168295651,1.28169881,601.5,600.57,0.27593019]
[1741168295847,1.65685621,601.52,600.57,0.27593019]
[1741168295848,0.3325076,601.49,600.57,0.27593019]
[1741168296650,0.3325076,601.49,600.58,0.27593019]
[1741168296854,0.3325076,601.49,600.49,0.28951386]
[1741168297053,0.3325076,601.49,600.5,0.27601214]
[1741168297456,2.60618601,601.48,600.5,0.27601214]
[1741168297649,0.33251866,601.47,600.51,0.27601214]
[1741168297855,0.33251866,601.47,600.41,0.27601214]
[1741168298250,0.94929664,601.46,600.41,0.27601214]
[1741168298456,1.28182635,601.45,600.42,0.27601214]
[1741168298651,0.94929664,601.44,600.43,0.27601653]
[1741168298956,0.94929664,601.43,600.44,0.27601653]
[1741168299156,1.19195836,601.44,600.41,0.27601653]
[1741168299356,0.94950526,601.43,600.42,0.27601653]
[1741168299553,0.33252971,601.45,600.42,0.27601653]
[1741168299752,0.94950606,601.44,600.41,0.27601653]
[1741168299959,2.14173511,601.43,600.42,0.27601653]
[1741168300155,0.94950606,601.42,600.43,0.27601653]
[1741168300460,1.19222905,601.43,600.44,0.27601653]
[1741168300662,0.33252971,601.45,600.45,0.27601653]
[1741168300858,0.33252971,601.45,600.46,0.27601653]
[1741168301156,0.33252971,601.45,600.47,0.27601653]
[1741168301356,0.33252971,601.45,600.48,0.27601653]
[1741168301555,0.28951506,601.44,600.49,0.27601653]
[1741168301759,0.28951506,601.44,600.5,0.27601653]
[1741168301959,0.28951506,601.44,600.51,0.27601653]
[1741168302156,0.28951506,601.44,600.52,0.27602541]
[1741168302361,0.28951506,601.44,600.44,0.27602541]
[1741168302555,0.28951506,601.44,600.45,0.27602541]
[1741168302759,0.28951506,601.44,600.59,1.22818455]
[1741168302960,0.28951506,601.44,600.6,0.27602541]
[1741168304755,0.28951506,601.44,600.44,0.27602541]
[1741168304960,0.28951506,601.44,600.45,0.27602541]
[1741168305159,0.28951506,601.44,600.44,0.27602541]
[1741168305561,0.28951506,601.44,600.43,0.28951506]
[1741168305957,0.28951506,601.44,600.44,0.27594424]
[1741168306763,1.19441177,601.43,600.44,0.27594424]
[1741168307462,0.33252971,601.45,600.44,0.27594424]
[1741168307659,0.28956204,601.42,600.43,0.28956204]
[1741168307865,0.28956204,601.42,600.44,0.27594424]
[1741168310364,0.33252971,601.45,600.44,0.27594424]
[1741168310564,0.33252971,601.45,599.88,0.27594424]
[1741168310766,0.28972838,601.41,600.43,0.28972838]
[1741168310967,0.28972838,601.41,599.9,0.33338889]
[1741168311266,0.28972838,601.41,599.91,0.27609846]
[1741168311465,0.28972838,601.41,599.93,0.33337222]
[1741168311661,0.28972838,601.41,599.94,0.27609846]
[1741168311861,0.28972838,601.41,599.96,0.33335555]
[1741168312066,0.28972838,601.41,599.97,0.27609846]
[1741168312267,0.28972838,601.41,599.99,0.33333888]
[1741168312467,0.28972838,601.41,600.0,0.27609846]
[1741168312666,0.28972838,601.41,600.02,0.33332222]
[1741168312863,0.28972838,601.41,600.03,0.27615582]
[1741168313066,0.28972838,601.41,600.05,0.33330555]
[1741168313266,0.33252971,601.45,600.06,0.27615582]
[1741168313466,2.6165794,601.44,600.07,0.33329444]
[1741168313661,0.33252971,601.45,600.07,0.33329444]
[1741168313662,0.28957408,601.4,600.08,0.27615582]
[1741168313866,0.28957408,601.4,600.09,0.60943916]
[1741168314068,0.28957408,601.4,600.1,0.6094336]
[1741168314269,0.28957408,601.4,599.97,0.28957408]
[1741168314270,0.28957408,601.4,600.11,0.60942805]
[1741168314470,0.28957408,601.4,600.12,0.60942249]
[1741168314670,0.28957408,601.4,600.13,0.60941694]
[1741168314671,1.19756613,601.39,600.13,0.60941694]
[1741168314872,0.95407571,601.38,600.14,0.27615582]
[1741168315067,1.19756613,601.39,600.55,1.22818455]
[1741168315271,0.28957408,601.4,600.55,1.22818455]
[1741168315272,2.6172643,601.38,600.56,0.27615582]
[1741168315470,0.95427357,601.37,600.57,0.27615582]
[1741168315775,1.19823883,601.37,600.58,0.27615582]
[1741168316074,0.33256842,601.38,600.59,0.27615582]
[1741168316275,0.95434673,601.37,600.56,0.27615582]
[1741168316574,0.28954156,601.37,600.57,0.27615582]
[1741168316776,1.1983109,601.36,600.58,0.27615582]
[1741168316974,0.28954156,601.37,600.56,0.27615582]
[1741168317175,0.28954156,601.37,600.57,0.27615582]
[1741168317373,2.61743481,601.36,600.53,0.27615582]
[1741168317569,0.95440075,601.35,600.54,0.27615582]
[1741168317771,0.28954156,601.37,600.53,0.27615582]
[1741168317975,2.6174471,601.36,600.54,0.27624315]
[1741168318270,2.61746918,601.35,600.55,0.27624315]
[1741168318467,0.95440454,601.34,600.56,0.27624315]
[1741168318672,0.95437557,601.33,600.57,0.27624315]
[1741168318873,2.15277328,601.32,600.53,0.27624315]
[1741168319074,1.1983885,601.32,600.54,0.27624315]
[1741168319277,1.1983885,601.31,600.55,0.27624315]
[1741168319475,1.1983885,601.31,600.56,0.27624315]
[1741168319773,1.1983885,601.31,600.57,0.27624315]
[1741168320074,0.3326016,601.32,600.41,1.22818455]
[1741168320075,1.1983885,601.3,600.58,0.27624315]
[1741168320270,1.1983885,601.3,600.41,1.22818455]
[1741168320271,1.1983885,601.3,600.42,0.27624315]
[1741168320480,1.1983885,601.3,600.43,0.27624315]
[1741168320674,0.3326016,601.32,600.41,1.22818455]
[1741168321578,0.3326016,601.32,600.46,1.22818455]
[1741168321773,0.3326016,601.32,600.47,0.27630277]
[1741168322477,0.28955601,601.31,600.48,0.2762958]
[1741168322676,0.28955601,601.31,600.47,0.2762958]
[1741168322871,0.28955601,601.31,600.48,0.27630034]
[1741168323077,0.28955601,601.31,600.49,0.27630034]
[1741168323277,0.28955601,601.31,600.57,1.22818455]
[1741168323477,0.28955601,601.31,600.58,0.27630034]
[1741168325371,0.3326016,601.32,600.58,0.27630034]
[1741168325577,0.3326016,601.32,600.61,1.22818455]
[1741168325877,0.3326016,601.32,600.62,0.27630034]
[1741168326881,0.3326016,601.32,600.67,1.22818455]
[1741168327076,0.3326016,601.32,600.68,0.27630034]
[1741168329177,0.3326016,601.32,600.73,1.22818455]
[1741168329377,0.3326016,601.32,600.74,0.27630034]
[1741168330577,0.95478129,601.31,600.74,0.27630034]
[1741168330783,0.3326016,601.32,600.74,0.27630034]
[1741168330977,1.19884872,601.3,600.74,0.27630034]
[1741168331785,0.3326016,601.32,600.74,0.27630034]
[1741168332079,6.80769482,601.31,600.52,1.22818455]
[1741168332284,7.14030749,601.3,600.52,1.22818455]
[1741168332487,6.80769482,601.29,600.52,1.22818455]
[1741168332686,7.14031855,601.28,600.52,1.22818455]
[1741168332882,7.14032408,601.27,600.52,1.22818455]
[1741168333078,2.61834416,601.26,600.52,1.22818455]
[1741168333281,2.61834416,601.25,600.52,1.22818455]
[1741168333479,2.61834416,601.24,600.52,1.22818455]
[1741168333784,2.61834416,601.23,600.52,1.22818455]
[1741168333986,2.61834416,601.22,600.52,1.22818455]
[1741168334185,2.61834416,601.21,600.52,1.22818455]
[1741168334386,3.11757478,601.22,600.26,1.22818455]
[1741168334387,2.95101215,601.2,600.26,1.22818455]
[1741168334688,6.06859247,601.19,600.27,0.27647727]
[1741168334887,2.95102322,601.18,600.27,0.27647727]
[1741168335081,2.95102875,601.17,600.26,1.51780201]
[1741168335282,4.1460858,601.16,600.27,0.27649989]
[1741168335483,7.14073331,601.15,600.27,0.27649989]
[1741168335683,5.61299721,601.14,600.27,0.27649989]
[1741168335986,2.61834416,601.13,600.27,0.27649989]
[1741168336187,5.61317969,601.12,600.27,0.27649989]
[1741168336390,5.61323193,601.11,600.28,0.27663867]
[1741168336591,6.06864228,601.1,600.16,0.28968376]
[1741168336888,2.95107303,601.09,600.17,0.27663867]
[1741168337088,2.95107857,601.08,600.17,0.27663867]
[1741168337285,2.9510841,601.07,599.77,0.27663867]
[1741168337489,2.95108964,601.06,600.11,0.28976095]
[1741168337687,1.28778448,601.05,600.12,0.27663867]
[1741168337889,1.53181766,601.05,600.11,0.2897513]
[1741168338091,1.53181766,601.05,600.12,0.27663867]
[1741168338491,1.19906665,601.04,600.12,0.27663867]
[1741168338991,1.19906665,601.04,600.25,1.22818455]
[1741168339190,1.19906665,601.04,600.26,0.27663867]
[1741168339790,0.33275101,601.05,600.26,0.27663867]
[1741168340587,0.28968979,601.04,600.26,0.27663867]
[1741168341492,0.28968979,601.04,600.25,1.22818455]
[1741168341692,0.28968979,601.04,600.26,0.27649019]
[1741168343094,0.28968979,601.04,600.27,0.27649019]
[1741168343294,0.33275101,601.05,600.24,0.27649019]
[1741168343691,0.2896705,601.04,600.24,0.27649019]
[1741168344994,0.2896705,601.04,600.23,1.22818455]
[1741168345195,0.2896705,601.04,600.24,0.27647609]
[1741168345992,0.2896705,601.04,600.25,0.27647609]
[1741168346189,0.2896705,601.04,600.2,0.27647609]
[1741168346392,0.33275101,601.05,600.2,0.27647609]
[1741168346792,0.28969703,601.03,600.2,0.27647609]
[1741168347397,0.28969703,601.03,600.21,0.27647609]
[1741168347595,0.28969703,601.03,600.22,0.27647609]
[1741168347789,0.28969703,601.03,600.23,0.27647609]
[1741168347993,0.28969703,601.03,600.24,0.27647609]
[1741168348193,0.28969703,601.03,600.16,0.27647609]
[1741168348394,0.28969703,601.03,600.17,0.27647609]
[1741168348590,0.28969703,601.03,600.15,0.28969703]
[1741168348796,0.28969703,601.03,600.16,0.27649922]
[1741168348995,0.28969703,601.03,600.17,0.27649922]
[1741168349199,0.28969703,601.03,600.18,0.27649922]
[1741168349390,0.33275101,601.05,600.19,0.27649922]
[1741168349595,0.28970667,601.02,600.2,0.27649922]
[1741168349795,0.28970667,601.02,600.21,0.27649922]
[1741168349997,0.28970667,601.02,600.22,0.27649922]
[1741168350198,0.28970667,601.02,600.17,0.27649922]
[1741168350399,0.28970667,601.02,600.18,0.27649922]
[1741168350592,0.28970667,601.02,600.19,0.27649922]
[1741168350797,0.28970667,601.02,600.2,0.27649922]
[1741168351201,0.28970667,601.02,600.21,0.27649922]
[1741168351396,0.28970667,601.02,600.22,0.27647825]
[1741168351698,0.33275101,601.05,600.23,0.27647825]
[1741168351892,0.33275101,601.05,600.24,0.27647825]
[1741168352097,0.33275101,601.05,600.25,0.27647825]
[1741168352292,0.33275101,601.05,600.26,0.27647825]
[1741168352492,0.33275101,601.05,600.27,0.27647825]
[1741168352692,0.33275101,601.05,600.28,0.27647825]
[1741168352896,0.33275101,601.05,600.29,0.27647825]
[1741168353098,0.33275101,601.05,600.3,0.27647825]
[1741168353299,0.33275101,601.05,600.31,0.27647825]
[1741168353600,0.33275101,601.05,600.32,0.27647825]
[1741168353895,0.33275101,601.05,600.21,0.27647825]
[1741168354099,0.33275101,601.05,600.22,0.27647825]
[1741168354300,0.33275101,601.05,600.23,0.27647825]
[1741168354499,0.33275101,601.05,600.24,0.27647825]
[1741168354800,0.33275101,601.05,600.27,1.22818455]
[1741168355001,0.33275101,601.05,600.28,0.27647825]
[1741168355593,0.33275101,601.05,600.29,0.27636757]
[1741168355793,0.33275101,601.05,600.28,0.27636757]
[1741168355996,0.33275101,601.05,600.29,0.27636757]
[1741168356198,0.33275101,601.05,600.28,0.27636757]
[1741168356399,0.33275101,601.05,600.29,0.27636757]
[1741168356594,0.33275101,601.05,600.21,0.27636757]
[1741168356799,0.33275101,601.05,600.22,0.27636757]
[1741168357000,0.33275101,601.05,600.23,0.27636757]
[1741168357196,0.33275101,601.05,600.24,0.27636757]
[1741168357392,0.33275101,601.05,600.21,0.27636757]
[1741168357599,0.33275101,601.05,600.22,0.27636757]
[1741168357794,0.33275101,601.05,600.21,0.27636757]
[1741168357998,0.33275101,601.05,600.22,0.27636757]
[1741168358392,0.33275101,601.05,600.23,0.27636757]
[1741168358598,0.33275101,601.05,600.24,0.27636757]
[1741168358800,0.33275101,601.05,600.25,0.27636757]
[1741168358996,0.33275101,601.05,600.22,0.27636757]
[1741168359195,0.33275101,601.05,600.23,0.27649743]
[1741168359396,0.33275101,601.05,600.22,0.27649743]
[1741168359593,0.33275101,601.05,600.23,0.27649743]
[1741168359796,0.33275101,601.05,600.24,0.27649743]
[1741168360000,0.33275101,601.05,600.25,0.27649743]
[1741168360199,0.33275101,601.05,600.26,0.27649743]
[1741168360396,0.33275101,601.05,600.22,0.27649743]
[1741168361493,0.33275101,601.05,600.23,0.27649743]
[1741168361696,0.33275101,601.05,600.22,0.27649743]
[1741168361892,0.33275101,601.05,600.23,0.27649743]
[1741168362094,0.33275101,601.05,600.22,0.27649743]
[1741168362294,0.33275101,601.05,600.23,0.27649743]
[1741168362500,0.33275101,601.05,600.24,0.27649743]
[1741168362695,0.33275101,601.05,600.25,0.27658489]
[1741168362899,0.33275101,601.05,600.22,0.27658489]
[1741168363095,0.33275101,601.05,600.23,0.27658489]
[1741168363294,0.33275101,601.05,600.24,0.27658489]
[1741168363498,0.33275101,601.05,600.22,0.27658489]
[1741168363802,0.33275101,601.05,600.23,0.27658489]
[1741168364100,0.33275101,601.05,600.24,0.27658489]
[1741168364302,0.33275101,601.05,600.22,0.27658489]